[Event "DSAM Finale 2019"]
[Site "Magdeburg"]
[Date "2019.05.31"]
[Round "3.5"]
[White "Richter, Thomas"]
[Black "Hielscher, Ursula"]
[Result "*"]
[ECO "D04"]
[WhiteElo "1821"]
[BlackElo "1780"]
[Annotator "NA RC"]
[PlyCount "45"]
[EventDate "2019.05.30"]
[EventType "swiss"]
[EventCountry "GER"]
[SourceTitle "playchess.com"]
[Source "ChessBase"]
[SourceQuality "1"]
[TimeControl "40/5400+30:900+30"]

{[%evp 8,40,27,10,4,-4,37,20,37,20,55,34,35,37,40,35,32767,32767,32767,22,44,32767,37,26,35,8,36,37,32767,32767,50,57,424,93,89]} 1. d4 {[%emt 0:00:00]} d5 {[%emt 0:00:00]} 2. Nf3 {[%emt 0:00:00]} Nf6 {[%emt 0:00:00]} 3. e3 {[%emt 0:00:45]} Bg4 {[%emt 0:01:25]} 4. c4 {[%emt 0:01:00]} e6 {[%emt 0:00:32]} 5. a3 {[%emt 0:02:11]} (5. Qb3 Bxf3 6. Qxb7 Nbd7 7. gxf3 Be7 8. Nc3 O-O 9. cxd5 Rb8 10. Qxa7 exd5 11. Bh3 Nb6 12. O-O c5 13. Nb5 Qe8 {1-0 (40) Vakhidov,J (2508)-Pert,R (2443) Southend 2015}) 5... Nbd7 {[%emt 0:02:47]} 6. Nc3 {[%emt 0:01:01] D04: Colle System} dxc4 {[%emt 0:00:31]} 7. Bxc4 {[%emt 0:00:08]} Nb6 $146 {[%emt 0:00:12]} ({Predecessor:} 7... Bd6 8. e4 e5 9. d5 O-O 10. h3 Bxf3 11. Qxf3 Ne8 12. g4 Bc5 13. Ne2 Nd6 14. Bd3 a5 {½-½ (76) Lemanczyk,T (2248)-Bischof,D (2268) Germany 2003}) 8. Be2 {[%emt 0:00:33]} c6 {[%emt 0:00:23]} 9. O-O {[%emt 0:03:16]} Be7 {[%emt 0:00:42]} 10. h3 {[%emt 0:07:46]} Bh5 {[%emt 0:00:16]} 11. Ne5 {[%emt 0:05:18]} Bxe2 {[%emt 0:02:26]} 12. Qxe2 {[%emt 0:00:02]} O-O {[%emt 0:04:10]} 13. Bd2 {[%emt 0:03:31]} Qc7 {[%emt 0:05:09]} 14. Rac1 {[%emt 0:00:46]} Rad8 {[%emt 0:02:58]} 15. Rfd1 {[%emt 0:05:00]} Qb8 {[%emt 0:02:22]} 16. Na2 {[%emt 0:11:06]} Ne4 {[%emt 0:10:38]} 17. Ba5 {[%emt 0:00:29]} Rd5 {[%emt 0:05:06]} 18. Bb4 {[%emt 0:03:06]} Bxb4 {[%emt 0:11:00]} 19. Nxb4 {[%emt 0:00:02]} Rb5 $2 {[%emt 0:03:21] [#]} (19... Rdd8 $14) 20. Qc2 $16 {[%emt 0:07:13]} (20. Nexc6 $1 $18 {[%mdl 512] and White stays clearly on top.} bxc6 21. Nxc6 Rxb2 22. Qxb2) 20... Nf6 {[%emt 0:03:28]} 21. Na2 {[%emt 0:03:52]} Rd5 {[%emt 0:03:26]} 22. Nc3 {[%emt 0:00:26]} Rdd8 {[%emt 0:00:09]} 23. b4 {[%emt 0:04:59]} *

[Event "DSAM Finale 2019"]
[Site "Magdeburg"]
[Date "2019.05.31"]
[Round "3.6"]
[White "Koretskyy, Davyd"]
[Black "Kinski, Andreas"]
[Result "1-0"]
[ECO "D02"]
[WhiteElo "1529"]
[BlackElo "1644"]
[Annotator "NA"]
[PlyCount "139"]
[EventDate "2019.05.30"]
[EventType "swiss"]
[EventCountry "GER"]
[SourceTitle "playchess.com"]
[Source "ChessBase"]
[SourceQuality "1"]
[TimeControl "40/5400+30:900+30"]

1. d4 {[%emt 0:00:00]} d5 {[%emt 0:00:00]} 2. Bf4 {[%emt 0:00:00]} Nf6 {[%emt 0:00:04]} 3. e3 {[%emt 0:00:00]} e6 {[%emt 0:02:45]} 4. Nf3 {[%emt 0:00:00]} Bd6 {[%emt 0:00:04]} 5. Bg3 {[%emt 0:00:03]} O-O {[%emt 0:00:37]} 6. Nbd2 {[%emt 0:00:24]} c5 {[%emt 0:01:01]} 7. c3 {[%emt 0:00:09]} b6 {[%emt 0:01:51]} 8. Bd3 {[%emt 0:01:03]} Bb7 {[%emt 0:00:54]} 9. Ne5 {[%emt 0:06:53]} Nc6 {[%emt 0:08:30]} 10. f4 {[%emt 0:06:13]} cxd4 {[%emt 0:05:57]} 11. exd4 {[%emt 0:00:22]} Be7 {[%emt 0:16:24]} 12. Bh4 {[%emt 0:04:17]} Nd7 {[%emt 0:04:34]} 13. Bxe7 {[%emt 0:01:09]} Qxe7 {[%emt 0:00:02]} 14. Nxd7 {[%emt 0:01:38]} Qxd7 {[%emt 0:00:02]} 15. Nf3 {[%emt 0:00:11]} f6 {[%emt 0:01:43]} 16. O-O {[%emt 0:15:18]} Ne7 {[%emt 0:11:19]} 17. Qc2 {[%emt 0:01:52]} f5 {[%emt 0:05:33]} 18. Rae1 {[%emt 0:02:07]} Ng6 {[%emt 0:05:25]} 19. Ne5 {[%emt 0:05:59]} Nxe5 {[%emt 0:00:37]} 20. fxe5 {[%emt 0:01:19]} g6 {[%emt 0:01:53]} 21. Re3 {[%emt 0:03:34]} Rf7 {[%emt 0:01:02]} 22. Rh3 {[%emt 0:07:03]} Raf8 {[%emt 0:01:00]} 23. Qd2 {[%emt 0:06:37]} Bc6 {[%emt 0:01:08]} 24. Qe2 {[%emt 0:03:27]} Qe8 {[%emt 0:01:58]} 25. Rhf3 {[%emt 0:01:28]} Qd7 {[%emt 0:00:21]} 26. h4 {[%emt 0:02:26]} h5 {[%emt 0:02:34]} 27. Rg3 {[%emt 0:01:51]} Rg7 {[%emt 0:00:53]} 28. Rg5 {[%emt 0:00:58]} Kh7 {[%emt 0:02:35]} 29. Rf3 {[%emt 0:02:14]} Kg8 {[%emt 0:02:40]} 30. Rfg3 {[%emt 0:01:28]} Qf7 {[%emt 0:01:42]} 31. Qf1 {[%emt 0:02:24]} Bd7 {[%emt 0:00:39]} 32. Qf4 {[%emt 0:00:28]} Kh7 {[%emt 0:01:31]} 33. Be2 {[%emt 0:01:12]} Rfg8 {[%emt 0:01:11]} 34. Qd2 {[%emt 0:01:19]} Qe7 {[%emt 0:03:06]} 35. Bxh5 {[%emt 0:01:57]} Be8 {[%emt 0:01:50]} 36. Be2 {[%emt 0:05:05]} Kh8 {[%emt 0:03:31]} 37. Qf4 {[%emt 0:03:07]} Qd7 {[%emt 0:01:20]} 38. Rh3 {[%emt 0:05:57]} Qe7 {[%emt 0:02:51]} 39. Qh2 {[%emt 0:00:56]} Rh7 {[%emt 0:00:45]} 40. Qg3 {[%emt 0:03:57]} Rgg7 {[%emt 0:00:16]} 41. Qf4 {[%emt 0:16:21]} Kg8 {[%emt 0:15:30]} 42. Kf2 {[%emt 0:00:00]} Kf8 {[%emt 0:00:00]} 43. Ke3 {[%emt 0:00:00]} Qd7 {[%emt 0:00:00]} 44. Rhg3 {[%emt 0:00:00]} Kg8 {[%emt 0:00:00]} 45. Rh3 {[%emt 0:00:00]} Kf8 {[%emt 0:00:00]} 46. g4 {[%emt 0:00:00]} Kg8 {[%emt 0:00:00]} 47. gxf5 {[%emt 0:00:00]} gxf5 {[%emt 0:00:00]} 48. Rhg3 {[%emt 0:00:00]} Qe7 {[%emt 0:00:00]} 49. Rxg7+ {[%emt 0:00:00]} Rxg7 {[%emt 0:00:00]} 50. Rxg7+ {[%emt 0:01:00]} Qxg7 {[%emt 0:00:00]} 51. Qg5 {[%emt 0:01:13]} Kh7 {[%emt 0:00:00]} 52. Kf4 {[%emt 0:00:40]} Qh6 {[%emt 0:00:00]} 53. Qxh6+ {[%emt 0:01:44]} Kxh6 {[%emt 0:00:00]} 54. b3 {[%emt 0:02:31]} a5 {[%emt 0:00:37]} 55. c4 {[%emt 0:00:50]} Bc6 {[%emt 0:00:14]} 56. cxd5 {[%emt 0:00:35]} Bxd5 {[%emt 0:00:03]} 57. Bf3 {[%emt 0:00:15]} Bxf3 {[%emt 0:00:16]} 58. Kxf3 {[%emt 0:00:03]} b5 {[%emt 0:15:12]} 59. Kf4 {[%emt 0:00:28]} Kg6 {[%emt 0:00:00]} 60. a3 {[%emt 0:00:19]} Kf7 {[%emt 0:00:00]} 61. Kg5 {[%emt 0:00:16]} Kg7 {[%emt 0:00:00]} 62. h5 {[%emt 0:00:33]} Kf7 {[%emt 0:00:00]} 63. h6 {[%emt 0:00:42]} a4 {[%emt 0:00:00]} 64. b4 {[%emt 0:00:15]} f4 {[%emt 0:00:00]} 65. Kxf4 {[%emt 0:00:25]} Kg6 {[%emt 0:00:00]} 66. Ke4 {[%emt 0:00:59]} Kxh6 {[%emt 0:00:00]} 67. d5 {[%emt 0:00:05]} exd5+ {[%emt 0:00:00]} 68. Kxd5 {[%emt 0:00:01]} Kg6 {[%emt 0:00:00]} 69. Kd6 {[%emt 0:00:16]} Kf7 {[%emt 0:00:00]} 70. Kd7 {[%emt 0:00:10]} 1-0

[Event "DSAM Finale 2019"]
[Site "Magdeburg"]
[Date "2019.05.31"]
[Round "3.7"]
[White "Malinowsky, Levi"]
[Black "Besou, Hussain"]
[Result "1/2-1/2"]
[ECO "C44"]
[WhiteElo "1400"]
[BlackElo "1789"]
[Annotator "NA RC"]
[PlyCount "55"]
[EventDate "2019.05.30"]
[EventType "swiss"]
[EventCountry "GER"]
[SourceTitle "playchess.com"]
[Source "ChessBase"]
[SourceQuality "1"]
[TimeControl "40/5400+30:900+30"]

1. e4 {[%emt 0:00:00]} e5 {[%emt 0:00:00]} 2. Nf3 {[%emt 0:00:35]} Nc6 {[%emt 0:00:00]} 3. d4 {[%emt 0:00:52]} exd4 {[%emt 0:00:00]} 4. Bc4 {[%emt 0:01:09]} Bb4+ {[%emt 0:04:02]} 5. c3 {[%emt 0:01:06]} dxc3 {[%emt 0:01:12]} 6. O-O {[%emt 0:01:19]} Nge7 {[%emt 0:01:43]} 7. bxc3 {[%emt 0:01:31]} Ba5 {[%emt 0:01:52]} 8. Ng5 {[%emt 0:02:22]} Ne5 {[%emt 0:00:21]} 9. Nxf7 {[%emt 0:06:52]} Nxf7 {[%emt 0:00:19]} 10. Bxf7+ {[%emt 0:00:18]} Kxf7 {[%emt 0:00:07]} 11. Qh5+ {[%emt 0:00:16]} Ng6 {[%emt 0:00:12]} 12. Qxa5 {[%emt 0:00:12]} c6 {[%emt 0:01:13]} 13. Qb4 {[%emt 0:03:03]} Qe7 {[%emt 0:00:36]} 14. Qd4 {[%emt 0:03:12]} Qf6 {[%emt 0:00:24]} 15. Qc4+ {[%emt 0:01:50]} Qe6 {[%emt 0:00:07]} 16. Qd4 {[%emt 0:04:03]} Re8 {[%emt 0:00:23]} 17. f3 {[%emt 0:04:45]} b6 {[%emt 0:01:13]} 18. Nd2 {[%emt 0:06:16]} c5 {[%emt 0:00:26]} 19. Qc4 {[%emt 0:05:27]} Qxc4 {[%emt 1:25:20]} 20. Nxc4 {[%emt 0:00:10]} Ke7 {[%emt 0:00:30]} 21. Rd1 {[%emt 0:02:03]} h6 {[%emt 0:00:00]} 22. Nd6 {[%emt 0:00:10]} Rf8 {[%emt 0:00:00]} 23. Nf5+ {[%emt 0:01:59]} Kf7 {[%emt 0:00:00]} 24. Nd6+ {[%emt 0:02:38]} Ke7 {[%emt 0:00:00]} 25. Nf5+ {[%emt 0:02:21]} Kf7 {[%emt 0:00:00]} 26. Nd6+ {[%emt 0:02:15]} Ke7 {[%emt 0:00:00]} 27. Nf5+ {[%emt 0:03:00]} Kf7 {[%emt 0:00:00]} 28. Nd6+ {[%emt 0:00:34]} 1/2-1/2

[Event "DSAM Finale 2019"]
[Site "Magdeburg"]
[Date "2019.05.31"]
[Round "4.1"]
[White "Arnold, Max"]
[Black "Voicu-Jagodzinsky, Carmen"]
[Result "1/2-1/2"]
[ECO "B22"]
[WhiteElo "2292"]
[BlackElo "2227"]
[Annotator "ChessBase"]
[PlyCount "73"]
[EventDate "2019.05.30"]
[EventType "swiss"]
[EventCountry "GER"]
[SourceTitle "playchess.com"]
[Source "ChessBase"]
[SourceQuality "1"]
[TimeControl "40/5400+30:900+30"]

1. e4 {[%emt 0:00:28]} c5 {[%emt 0:00:00]} 2. c3 {[%emt 0:00:36]} g6 {[%emt 0:00:16]} 3. d4 {[%emt 0:00:20]} cxd4 {[%emt 0:00:34]} 4. cxd4 {[%emt 0:00:11]} d5 {[%emt 0:00:04]} 5. e5 {[%emt 0:00:19]} Nc6 {[%emt 0:00:30]} 6. Nc3 {[%emt 0:00:24]} a6 {[%emt 0:01:38]} 7. h3 {[%emt 0:01:04]} Nh6 {[%emt 0:02:14]} 8. Nf3 {[%emt 0:01:44]} Bg7 {[%emt 0:01:27]} 9. Be2 {[%emt 0:00:54]} O-O {[%emt 0:03:17]} 10. O-O {[%emt 0:00:49]} f6 {[%emt 0:05:31]} 11. exf6 {[%emt 0:07:34]} exf6 {[%emt 0:01:22]} 12. Qb3 {[%emt 0:11:48]} Nf5 {[%emt 0:18:23]} 13. Rd1 {[%emt 0:02:46]} Nfe7 {[%emt 0:07:28]} 14. Na4 {[%emt 0:11:46]} Qd6 {[%emt 0:02:22]} 15. Qa3 {[%emt 0:08:27]} Qd8 {[%emt 0:17:27]} 16. Bd2 {[%emt 0:19:48]} g5 {[%emt 0:01:47]} 17. Bb4 {[%emt 0:04:19]} Nxb4 {[%emt 0:06:40]} 18. Qxb4 {[%emt 0:00:09]} b5 {[%emt 0:01:47]} 19. Nc5 {[%emt 0:01:27]} Ng6 {[%emt 0:02:25]} 20. Re1 {[%emt 0:01:59]} Re8 {[%emt 0:01:32]} 21. Bf1 {[%emt 0:01:03]} Bf8 {[%emt 0:00:34]} 22. g3 {[%emt 0:04:38]} Ra7 {[%emt 0:04:15]} 23. Bg2 {[%emt 0:01:24]} Rxe1+ {[%emt 0:02:08]} 24. Rxe1 {[%emt 0:00:22]} h5 {[%emt 0:00:14]} 25. Qb3 {[%emt 0:01:27]} Re7 {[%emt 0:02:19]} 26. Rxe7 {[%emt 0:00:45]} Nxe7 {[%emt 0:00:03]} 27. a4 {[%emt 0:03:49]} Qa5 {[%emt 0:01:55]} 28. axb5 {[%emt 0:03:19]} axb5 {[%emt 0:00:02]} 29. Kh2 {[%emt 0:02:01]} Kf7 {[%emt 0:05:25]} 30. h4 {[%emt 0:03:49]} g4 {[%emt 0:00:46]} 31. Ng1 {[%emt 0:00:06]} Qd2 {[%emt 0:00:45]} 32. Nd3 {[%emt 0:04:02]} Bf5 {[%emt 0:01:53]} 33. Nf4 {[%emt 0:00:16]} Qxd4 {[%emt 0:01:33]} 34. Nxd5 {[%emt 0:02:06]} Be6 {[%emt 0:02:11]} 35. Qe3 {[%emt 0:00:05]} Nf5 {[%emt 0:02:07]} 36. Qxd4 {[%emt 0:00:46]} Nxd4 {[%emt 0:00:01]} 37. Nf4 {[%emt 0:00:16]} 1/2-1/2

[Event "DSAM Finale 2019"]
[Site "Magdeburg"]
[Date "2019.05.31"]
[Round "4.2"]
[White "Hesse, Henrik"]
[Black "Peist, Juergen"]
[Result "1-0"]
[ECO "A31"]
[WhiteElo "2166"]
[BlackElo "2290"]
[Annotator "ChessBase"]
[PlyCount "89"]
[EventDate "2019.05.30"]
[EventType "swiss"]
[EventCountry "GER"]
[SourceTitle "playchess.com"]
[Source "ChessBase"]
[SourceQuality "1"]
[TimeControl "40/5400+30:900+30"]

1. c4 {[%emt 0:00:00]} b6 {[%emt 0:00:00]} 2. e4 {[%emt 0:03:30]} Bb7 {[%emt 0:00:55]} 3. Nc3 {[%emt 0:00:21]} c5 {[%emt 0:00:23]} 4. Nf3 {[%emt 0:01:10]} e6 {[%emt 0:03:03]} 5. Be2 {[%emt 0:02:40]} d6 {[%emt 0:02:04]} 6. d4 {[%emt 0:01:56]} cxd4 {[%emt 0:00:07]} 7. Nxd4 {[%emt 0:00:04]} Nf6 {[%emt 0:00:10]} 8. f3 {[%emt 0:02:07]} Be7 {[%emt 0:00:37]} 9. O-O {[%emt 0:03:27]} O-O {[%emt 0:00:07]} 10. Be3 {[%emt 0:02:08]} a6 {[%emt 0:00:21]} 11. Rc1 {[%emt 0:02:27]} Nbd7 {[%emt 0:00:18]} 12. Qe1 {[%emt 0:11:47]} Rc8 {[%emt 0:00:12]} 13. Qf2 {[%emt 0:00:28]} Qc7 {[%emt 0:00:13]} 14. Rfd1 {[%emt 0:03:29]} Qb8 {[%emt 0:00:10]} 15. b3 {[%emt 0:04:30]} Bd8 {[%emt 0:03:13]} 16. Qg3 {[%emt 0:11:17]} Kh8 {[%emt 0:03:46]} 17. Kh1 {[%emt 0:03:40]} Bc7 {[%emt 0:00:40]} 18. Qh3 {[%emt 0:00:09]} Rg8 {[%emt 0:02:48]} 19. g4 {[%emt 0:04:44]} g5 {[%emt 0:03:18]} 20. Nc2 {[%emt 0:05:57]} Rg6 {[%emt 0:03:31]} 21. Bd4 {[%emt 0:03:23]} Kg7 {[%emt 0:07:49]} 22. Qg2 {[%emt 0:05:22]} Rh8 {[%emt 0:00:27]} 23. Ne3 {[%emt 0:15:23]} Kf8 {[%emt 0:04:17]} 24. Nf1 {[%emt 0:04:53]} h5 {[%emt 0:00:17]} 25. gxh5 {[%emt 0:00:41]} Rxh5 {[%emt 0:00:12]} 26. Bd3 {[%emt 0:03:06]} Qa8 {[%emt 0:03:50]} 27. Ne2 {[%emt 0:01:06]} g4 {[%emt 0:04:27]} 28. Nf4 {[%emt 0:01:01]} Rg8 {[%emt 0:28:39]} 29. Nxh5 {[%emt 0:01:00]} gxf3 {[%emt 0:02:51]} 30. Qd2 {[%emt 0:01:08]} f2 {[%emt 0:01:10]} 31. Qh6+ {[%emt 0:00:56]} Ke8 {[%emt 0:00:18]} 32. Ng7+ {[%emt 0:01:09]} Ke7 {[%emt 0:16:11]} 33. Bxf6+ {[%emt 0:00:59]} Nxf6 {[%emt 0:00:02]} 34. Ng3 {[%emt 0:00:23]} Nxe4 {[%emt 0:00:28]} 35. Kg2 {[%emt 0:00:31]} Nf6+ {[%emt 0:01:24]} 36. Kf1 {[%emt 0:00:36]} Bg2+ {[%emt 0:09:42]} 37. Ke2 Qf3+ {[%emt 0:00:00]} 38. Kd2 {[%emt 0:00:00]} d5 {[%emt 0:00:00]} 39. N7f5+ {[%emt 0:01:11]} exf5 {[%emt 0:00:35]} 40. Nxf5+ {[%emt 0:00:04]} Ke8 {[%emt 0:00:34]} 41. Qxf6 {[%emt 0:04:29]} Bf4+ {[%emt 0:01:06]} 42. Kc2 {[%emt 0:01:14]} Bg5 {[%emt 0:00:41]} 43. Re1+ {[%emt 0:03:57]} fxe1=Q {[%emt 0:00:41]} 44. Rxe1+ {[%emt 0:00:00]} Kd7 {[%emt 0:01:13]} 45. Re7+ {[%emt 0:00:09]} 1-0

[Event "DSAM Finale 2019"]
[Site "Magdeburg"]
[Date "2019.05.31"]
[Round "4.3"]
[White "Juergens, Bernhard"]
[Black "Ratzmann, Immo"]
[Result "1-0"]
[ECO "C00"]
[WhiteElo "2115"]
[BlackElo "2078"]
[Annotator "ChessBase"]
[PlyCount "29"]
[EventDate "2019.05.30"]
[EventType "swiss"]
[EventCountry "GER"]
[SourceTitle "playchess.com"]
[Source "ChessBase"]
[SourceQuality "1"]
[TimeControl "40/5400+30:900+30"]

1. e4 {[%emt 0:00:00]} e6 {[%emt 0:00:00]} 2. d3 {[%emt 0:00:03]} d5 {[%emt 0:00:00]} 3. Nd2 {[%emt 0:00:03]} Nc6 {[%emt 0:00:04]} 4. Ngf3 {[%emt 0:00:17]} Nf6 {[%emt 0:00:07]} 5. Qe2 {[%emt 0:02:08]} dxe4 {[%emt 0:10:42]} 6. Nxe4 {[%emt 0:01:09]} Be7 {[%emt 0:04:46]} 7. Bf4 {[%emt 0:01:32]} b6 {[%emt 0:03:32]} 8. c3 {[%emt 0:07:05]} Bb7 {[%emt 0:00:36]} 9. g3 {[%emt 0:01:27]} O-O {[%emt 0:08:43]} 10. Bg2 {[%emt 0:00:14]} Qd7 {[%emt 0:08:25]} 11. O-O {[%emt 0:01:15]} Rad8 {[%emt 0:02:02]} 12. d4 {[%emt 0:03:21]} Qc8 {[%emt 0:04:14]} 13. Nxf6+ {[%emt 0:03:25]} Bxf6 {[%emt 0:00:13]} 14. Rfe1 {[%emt 0:00:51]} Qa8 {[%emt 0:03:42]} 15. Bxc7 {[%emt 0:08:37]} 1-0

[Event "DSAM Finale 2019"]
[Site "Magdeburg"]
[Date "2019.05.31"]
[Round "4.4"]
[White "Domnick, Michael"]
[Black "Boyko, Oleksiy"]
[Result "0-1"]
[ECO "E60"]
[WhiteElo "1867"]
[BlackElo "1861"]
[Annotator "NA"]
[PlyCount "114"]
[EventDate "2019.05.30"]
[EventType "swiss"]
[EventCountry "GER"]
[SourceTitle "playchess.com"]
[Source "ChessBase"]
[SourceQuality "1"]
[TimeControl "40/5400+30:900+30"]

1. d4 {[%emt 0:00:00]} Nf6 {[%emt 0:00:00]} 2. Nf3 {[%emt 0:00:00]} g6 {[%emt 0:00:00]} 3. g3 {[%emt 0:00:00]} Bg7 {[%emt 0:00:06]} 4. c4 {[%emt 0:00:30]} O-O {[%emt 0:00:12]} 5. Bg2 {[%emt 0:00:28]} d6 {[%emt 0:00:19]} 6. Nbd2 {[%emt 0:01:08]} Nbd7 {[%emt 0:04:02]} 7. O-O {[%emt 0:00:52]} e5 {[%emt 0:00:08]} 8. dxe5 {[%emt 0:00:23]} dxe5 {[%emt 0:01:24]} 9. Qc2 {[%emt 0:01:39]} Qe7 {[%emt 0:01:47]} 10. Ne4 {[%emt 0:01:35]} Nxe4 {[%emt 0:00:42]} 11. Qxe4 {[%emt 0:00:05]} Nc5 {[%emt 0:00:48]} 12. Qc2 {[%emt 0:01:19]} Bf5 {[%emt 0:00:34]} 13. Qd2 {[%emt 0:02:09]} Rad8 {[%emt 0:13:01]} 14. Qb4 {[%emt 0:00:20]} Rfe8 {[%emt 0:05:37]} 15. Bg5 {[%emt 0:00:58]} f6 {[%emt 0:00:38]} 16. Be3 {[%emt 0:00:20]} Bf8 {[%emt 0:03:25]} 17. Bxc5 {[%emt 0:04:30]} Qxc5 {[%emt 0:00:21]} 18. Qxb7 {[%emt 0:00:22]} Rb8 {[%emt 0:01:37]} 19. Qa6 {[%emt 0:02:23]} Re6 {[%emt 0:03:10]} 20. Qa4 {[%emt 0:01:26]} Rxb2 {[%emt 0:04:42]} 21. Nh4 {[%emt 0:00:28]} Bc2 {[%emt 0:01:37]} 22. Qd7 {[%emt 0:00:39]} Qd6 {[%emt 0:06:38]} 23. Qc8 {[%emt 0:04:24]} Re7 {[%emt 0:10:28]} 24. Bd5+ {[%emt 0:01:30]} Kg7 {[%emt 0:00:40]} 25. Qa8 {[%emt 0:02:25]} Qb6 {[%emt 0:03:41]} 26. Rfc1 {[%emt 0:03:46]} Rd7 {[%emt 0:09:33]} 27. Nf3 {[%emt 0:02:01]} Bc5 {[%emt 0:02:40]} 28. Qg8+ {[%emt 0:02:09]} Kh6 {[%emt 0:00:01]} 29. e3 {[%emt 0:02:47]} c6 {[%emt 0:04:17]} 30. Qe6 {[%emt 0:05:49]} Bf5 {[%emt 0:03:19]} 31. Qxf6 {[%emt 0:00:39]} cxd5 {[%emt 0:01:13]} 32. Qg5+ {[%emt 0:01:49]} Kg7 {[%emt 0:00:41]} 33. Nxe5 {[%emt 0:00:52]} Re7 {[%emt 0:01:25]} 34. Nf3 {[%emt 0:02:15]} Rxe3 {[%emt 0:02:55]} 35. Nh4 {[%emt 0:05:41]} Re1+ {[%emt 0:05:18]} 36. Rxe1 {[%emt 0:01:40]} Bxf2+ {[%emt 0:00:09]} 37. Kh1 {[%emt 0:02:36]} Be4+ {[%emt 0:07:02]} 38. Rxe4 {[%emt 0:00:24]} dxe4 {[%emt 0:00:02]} 39. Qe7+ {[%emt 0:02:04]} Kh6 {[%emt 0:02:25]} 40. Qxe4 {[%emt 0:09:02]} Qd4 {[%emt 0:01:50]} 41. Qf3 {[%emt 0:33:10]} Qxc4 {[%emt 0:03:36]} 42. Qf8+ {[%emt 0:00:00]} Kh5 {[%emt 0:01:37]} 43. Ng2 {[%emt 0:00:00]} Qe4 {[%emt 0:02:47]} 44. g4+ {[%emt 0:04:25]} Kxg4 {[%emt 0:04:22]} 45. Qc8+ {[%emt 0:00:20]} Kh5 {[%emt 0:02:30]} 46. Qh3+ {[%emt 0:01:10]} Kg5 {[%emt 0:00:20]} 47. Rd1 {[%emt 0:06:33]} Rxa2 {[%emt 0:02:08]} 48. Qb3 {[%emt 0:01:10]} Re2 {[%emt 0:00:35]} 49. Rd5+ {[%emt 0:01:52]} Kh6 {[%emt 0:00:56]} 50. Qh3+ {[%emt 0:02:37]} Kg7 {[%emt 0:00:21]} 51. Rd7+ {[%emt 0:00:34]} Kf6 {[%emt 0:00:43]} 52. Rd6+ {[%emt 0:03:00]} Kg5 {[%emt 0:00:17]} 53. Rd1 {[%emt 0:01:48]} a5 {[%emt 0:00:20]} 54. Qxh7 {[%emt 0:00:36]} Qf3 {[%emt 0:01:48]} 55. h4+ {[%emt 0:00:46]} Kg4 {[%emt 0:00:55]} 56. Qxg6+ {[%emt 0:00:09]} Kh3 {[%emt 0:00:23]} 57. Rf1 {[%emt 0:00:40]} Re1 {[%emt 0:01:25]} 0-1

[Event "DSAM Finale 2019"]
[Site "Magdeburg"]
[Date "2019.05.31"]
[Round "4.5"]
[White "Heid, Michael"]
[Black "Huneck, Frank"]
[Result "1-0"]
[ECO "A45"]
[WhiteElo "1838"]
[BlackElo "1755"]
[Annotator "NA"]
[PlyCount "27"]
[EventDate "2019.05.30"]
[EventType "swiss"]
[EventCountry "GER"]
[SourceTitle "playchess.com"]
[Source "ChessBase"]
[SourceQuality "1"]
[TimeControl "40/5400+30:900+30"]

1. d4 {[%emt 0:00:00]} Nf6 {[%emt 0:00:00]} 2. Bg5 {[%emt 0:00:00]} Ne4 {[%emt 0:00:13]} 3. Bf4 {[%emt 0:00:00]} c5 {[%emt 0:00:26]} 4. e3 {[%emt 0:00:47]} Qb6 {[%emt 0:03:50]} 5. Nc3 {[%emt 0:01:20]} Qa5 {[%emt 0:08:07]} 6. Nge2 {[%emt 0:00:50]} b6 {[%emt 0:15:47]} 7. f3 {[%emt 0:07:30]} cxd4 {[%emt 0:05:47]} 8. exd4 {[%emt 0:04:09]} Nf6 {[%emt 0:02:28]} 9. Qd2 {[%emt 0:05:24]} d5 {[%emt 0:02:55]} 10. Nc1 {[%emt 0:01:29]} e6 {[%emt 0:03:44]} 11. Nb3 {[%emt 0:05:29]} Qb4 {[%emt 0:01:02]} 12. a3 {[%emt 0:00:33]} Qe7 {[%emt 0:03:24]} 13. Nb5 {[%emt 0:00:07]} Na6 {[%emt 0:02:13]} 14. Nd6+ {[%emt 0:00:17]} 1-0

[Event "DSAM Finale 2019"]
[Site "Magdeburg"]
[Date "2019.05.31"]
[Round "4.6"]
[White "Kort, Felix"]
[Black "Koretskyy, Davyd"]
[Result "1/2-1/2"]
[ECO "A86"]
[WhiteElo "1604"]
[BlackElo "1529"]
[Annotator "NA"]
[PlyCount "60"]
[EventDate "2019.05.30"]
[EventType "swiss"]
[EventCountry "GER"]
[SourceTitle "playchess.com"]
[Source "ChessBase"]
[SourceQuality "1"]
[TimeControl "40/5400+30:900+30"]

1. d4 {[%emt 0:00:00]} f5 {[%emt 0:00:00]} 2. c4 {[%emt 0:00:00]} Nf6 {[%emt 0:00:01]} 3. g3 {[%emt 0:00:12]} g6 {[%emt 0:00:23]} 4. Bg2 {[%emt 0:00:27]} Bg7 {[%emt 0:00:05]} 5. b3 {[%emt 0:03:47]} d6 {[%emt 0:07:39]} 6. Bb2 {[%emt 0:00:43]} Nbd7 {[%emt 0:02:03]} 7. Nh3 {[%emt 0:02:06]} e5 {[%emt 0:02:33]} 8. d5 {[%emt 0:11:36]} a5 {[%emt 0:05:40]} 9. Ng5 {[%emt 0:05:32]} Nc5 {[%emt 0:00:19]} 10. Ne6 {[%emt 0:01:46]} Nxe6 {[%emt 0:00:43]} 11. dxe6 {[%emt 0:00:10]} Qe7 {[%emt 0:14:09]} 12. Nc3 {[%emt 0:07:02]} Qxe6 {[%emt 0:05:02]} 13. Nb5 {[%emt 0:02:45]} Qe7 {[%emt 0:09:14]} 14. a4 {[%emt 0:01:04]} O-O {[%emt 0:09:18]} 15. Qd2 {[%emt 0:04:38]} Rd8 {[%emt 0:04:18]} 16. Bc3 {[%emt 0:02:49]} c6 {[%emt 0:02:59]} 17. Bxa5 {[%emt 0:01:20]} Rxa5 {[%emt 0:01:17]} 18. Qxa5 {[%emt 0:00:11]} cxb5 {[%emt 0:00:16]} 19. Qxb5 {[%emt 0:02:13]} e4 {[%emt 0:02:42]} 20. Rd1 {[%emt 0:02:20]} Be6 {[%emt 0:04:02]} 21. O-O {[%emt 0:05:01]} d5 {[%emt 0:01:21]} 22. Qb6 {[%emt 0:05:54]} Ng4 {[%emt 0:06:37]} 23. f3 {[%emt 0:05:27]} Nf6 {[%emt 0:06:37]} 24. fxe4 {[%emt 0:01:59]} Nxe4 {[%emt 0:01:23]} 25. Bxe4 {[%emt 0:04:00]} fxe4 {[%emt 0:00:08]} 26. cxd5 {[%emt 0:02:37]} Bxd5 {[%emt 0:07:46]} 27. Qa5 {[%emt 0:02:35]} Qg5 {[%emt 0:01:24]} 28. Rf4 {[%emt 0:17:21]} e3 {[%emt 0:02:52]} 29. Rg4 {[%emt 0:02:06]} Qf6 {[%emt 0:00:45]} 30. Rf4 {[%emt 0:02:27]} Ra8 {[%emt 0:03:24]} 1/2-1/2